fUSD/lending_fUSD_20251013
["ID","MTS","AMOUNT","RATE_DAILY","PERIOD"]
[391135130,1760386247153,-11579.15349232,0.00028288,8]
[391135132,1760386247163,-31111.06094163,0.00028288,8]
[391135135,1760386247176,-502.2,0.00028288,8]
[391136821,1760386264886,300.0,0.00026682,120]
[391136980,1760386267383,2500.0,0.00026365,120]
[391136993,1760386267486,2500.0,0.00027208,120]
[391137004,1760386267586,150.0,0.00027208,120]
[391137360,1760387217557,192.0,0.00026723,120]
[391137376,1760387431607,-673.58633042,0.0001289,2]
[391137378,1760387431663,-1608.81366958,0.0001289,2]
[391137379,1760387431673,-250.0,0.00014179,2]
[391137380,1760387431682,-250.0,0.00014179,2]
[391137381,1760387431692,-200.0,0.000149,5]
[391137382,1760387431702,-175.67875445,0.000149,2]
[391137383,1760387431711,-1200.0,0.00014998,2]
[391137384,1760387431720,-1200.0,0.00014998,2]
[391137385,1760387431730,-150.0,0.00014998,2]
[391137386,1760387431739,-343.99384973,0.00014999,2]
[391137387,1760387431748,-500.0,0.00014999,2]
[391137388,1760387431758,-500.0,0.00014999,2]
[391137389,1760387431767,-500.0,0.00014999,2]
[391137390,1760387431777,-500.0,0.00014999,2]
[391137391,1760387431786,-353.43280942,0.00014999,2]
[391137392,1760387431795,-500.0,0.00014999,2]
[391137393,1760387431805,-500.0,0.00014999,2]
[391137394,1760387431815,-500.0,0.00014999,2]
[391137395,1760387431825,-500.0,0.00014999,2]
[391137396,1760387431834,-500.0,0.00014999,2]
[391137397,1760387431843,-11567.82691938,0.00015,2]
[391137398,1760387431855,-643.33709583,0.00015,2]
[391137399,1760387431866,-10920.89530495,0.00015,2]
[391137400,1760387431877,-46620.67960414,0.00015,2]
[391137401,1760387431891,-1459.65947331,0.00015,2]
[391137403,1760387431903,-93941.01717639,0.00015,2]
[391137406,1760387431914,-2108.01942602,0.00015,2]
[391137458,1760387437607,-281.55,0.00015,2]
[391137600,1760387439732,-1397.8791,0.00015,2]
[391137601,1760387439790,-497.62428553,0.00015,2]
[391137602,1760387439801,-881.80076925,0.00015,2]
[391137621,1760387444244,-661.709808,0.00015,2]
[391137622,1760387444262,-3139.55205029,0.00015,2]
[391137623,1760387444274,-262.734,0.00015,2]
[391137624,1760387444285,-579449.98902173,0.00015,2]
[391137625,1760387444297,-505.96403242,0.00015,2]
[391137626,1760387444311,-262.0356935,0.00015,2]
[391137627,1760387444322,-500.0,0.00015,2]
[391137667,1760387445908,-2556.60476968,0.00015,2]
[391137673,1760387445967,-3339.25,0.00015,2]
[391137674,1760387445978,-500.0,0.00015,2]
[391137675,1760387445989,-195.54872418,0.00015,2]
[391137676,1760387445999,-3050.55523321,0.00015,2]
[391137677,1760387446010,-886.52768017,0.00015,2]
[391137678,1760387446031,-626.8265502,0.00015,2]
[391137687,1760387539795,500.0,0.00027397,120]
[391137691,1760388142066,2858075.08443593,0.00027397,120]
[391137700,1760388631746,-303.66,0.00013699,2]
[391137702,1760388631756,-166.47344729,0.00014062,2]
[391137703,1760388631767,-334.9997701,0.000149,2]
[391137704,1760388631777,-500.0,0.00014985,2]
[391137705,1760388631786,-151.0,0.00014991,2]
[391137707,1760388631797,-151.0,0.00014991,2]
[391137708,1760388631806,-151.0,0.00014991,2]
[391137709,1760388631816,-151.0,0.00014991,2]
[391137710,1760388631825,-151.0,0.00014991,2]
[391137711,1760388631835,-151.0,0.00014991,2]
[391137712,1760388631844,-500.0,0.00014999,2]
[391137713,1760388631853,-500.0,0.00014999,2]
[391137714,1760388631862,-500.0,0.00014999,2]
[391137715,1760388631872,-410.71341827,0.00014999,2]
[391137716,1760388631882,-235.89054547,0.00014999,2]
[391137717,1760388631891,-150.0,0.00014999,2]
[391137718,1760388631909,-90059.73058293,0.00015,2]
[391137719,1760388631921,-448.31428,0.00015,2]
[391137720,1760388631931,-2500.0,0.00015068,2]
[391137721,1760388631942,-250.0,0.00015068,2]
[391137722,1760388631951,-160.5728379,0.00015754,2]
[391137723,1760388631961,-193.2286757,0.00015754,2]
[391137724,1760388631971,-150.0,0.00016124,2]
[391137725,1760388631980,-5000.00552832,0.000162,5]
[391137726,1760388631990,-250.0,0.00017,2]
[391137727,1760388632000,-448.31429,0.00017,2]
[391137728,1760388632010,-222.45524537,0.000171,2]
[391137729,1760388632020,-333.68286808,0.000171,2]
[391137730,1760388632030,-475.32661018,0.00017554,2]
[391137731,1760388632040,-278.06905674,0.00017621,2]
[391137732,1760388632050,-389.29667944,0.00018932,2]
[391137733,1760388632060,-340.05743416,0.00018945,2]
[391137734,1760388632070,-448.31428,0.00019,2]
[391137735,1760388632080,-303.66,0.00020187,2]
[391137736,1760388632090,-222.45524539,0.00020243,2]
[391137737,1760388632099,-448.31429,0.00021,2]
[391137738,1760388632110,-166.66,0.00021519,2]
[391137739,1760388632120,-193.2286757,0.00021523,2]
[391137740,1760388632130,-240.99318251,0.00021554,2]
[391137741,1760388632140,-250.0,0.00021711,7]
[391137742,1760388632150,-166.66,0.00021972,30]
[391137743,1760388632160,-166.66,0.00022425,30]
[391137744,1760388632170,-5000.0,0.00022618,2]
[391137745,1760388632179,-259.53111963,0.00022864,2]
[391137747,1760388632189,-166.66,0.00022878,30]
[391137749,1760388632198,-448.31428,0.00023,2]
[391137751,1760388632207,-163.69,0.00023326,2]
[391137753,1760388632216,-166.66,0.00023331,30]
[391137755,1760388632226,-166.66,0.00023784,30]
[391137757,1760388632235,-278.06905674,0.00024175,2]
[391137759,1760388632244,-1000.0,0.000242,2]
[391137761,1760388632254,-84.73360619,0.00024432,7]
[391137764,1760388632278,-1717.49039381,0.00024432,7]
[391137766,1760388632288,-150.0,0.00024658,2]
[391137768,1760388632297,-150.0,0.00024658,2]
[391137770,1760388632306,-150.0,0.00024658,2]
[391137772,1760388632316,-150.0,0.00024658,2]
[391137774,1760388632325,-150.0,0.00024658,2]
[391137776,1760388632334,-215.51682004,0.00024658,2]
[391137778,1760388632344,-150.0,0.00024658,2]
[391137780,1760388632353,-150.0,0.00024658,2]
[391137782,1760388632364,-150.0,0.00024658,2]
[391137784,1760388632373,-150.0,0.00024658,2]
[391137786,1760388632382,-150.0,0.00024658,2]
[391137788,1760388632391,-500.0,0.00024932,2]
[391137790,1760388632401,-416.416,0.0002498,2]
[391137792,1760388632410,-150.99,0.0002498,2]
[391137794,1760388632419,-1474.94488296,0.0002498,2]
[391137797,1760388632434,-4110.20728209,0.0002498,2]
[391137799,1760388632446,-997.72783495,0.0002498,2]
[391137801,1760388632455,-999.99,0.0002498,2]
[391137803,1760388632465,-448.31429,0.00025,2]
[391137805,1760388632474,-150.0,0.00025114,4]
[391137808,1760388632483,-250.0,0.00025179,2]
[391137810,1760388632493,-150.0,0.00025205,4]
[391137812,1760388632503,-183.0,0.00025227,120]
[391137814,1760388632513,-187.0,0.00025227,120]
[391137816,1760388632522,-332.73595736,0.00025354,2]
[391137818,1760388632532,-296.60699386,0.00025486,3]
[391137820,1760388632541,-150.0,0.00025571,4]
[391137822,1760388632550,-150.0,0.00025571,4]
[391137824,1760388632560,-901.0,0.00025659,2]
[391137826,1760388632571,-150.0,0.00025753,4]
[391137828,1760388632580,-168.0,0.00026024,2]
[391137830,1760388632589,-89.62052606,0.00026027,4]
[391137832,1760388632601,-60.37947394,0.00026027,4]
[391137834,1760388632610,-150.0,0.00026027,4]
[391137836,1760388632619,-150.0,0.00026027,4]
[391137838,1760388632628,-150.0,0.00026027,4]
[391137840,1760388632637,-743.01,0.00026164,7]
[391137842,1760388632647,-743.01,0.00026164,7]
[391137844,1760388632656,-743.01,0.00026164,7]
[391137846,1760388632665,-222.0848987,0.00026164,7]
[391137849,1760388632677,-520.9251013,0.00026164,7]
[391137851,1760388632686,-150.0,0.00026301,4]
[391137853,1760388632695,-979.0748987,0.00026338,2]
[391137855,1760388632710,-20.9251013,0.00026338,2]
[391137857,1760388632721,-520.49,0.00026365,2]
[391137859,1760388632731,-384.60039337,0.00026365,2]
[391137862,1760388632743,-148.54960663,0.00026365,2]
[391137863,1760388632752,-516.4,0.00026366,2]
[391137865,1760388632761,-743.01,0.00026438,7]
[391137866,1760388632770,-743.01,0.00026438,7]
[391137867,1760388632780,-150.0,0.00026484,4]
[391137868,1760388632789,-150.0,0.00026484,4]
[391137869,1760388632800,-183.0,0.00026488,120]
[391137870,1760388632809,-168.0,0.00026624,2]
[391137871,1760388632820,-303.66,0.00026676,2]
[391137872,1760388632834,-743.01,0.00026712,7]
[391137873,1760388632844,-743.01,0.00026712,7]
[391137874,1760388632853,-168.0,0.00026764,2]
[391137875,1760388632863,-666.0,0.00026778,3]
[391137876,1760388632873,-152.0,0.0002678,3]
[391137877,1760388632882,-315.14493098,0.00026797,6]
[391137878,1760388632893,-221.14,0.00026804,2]
[391137879,1760388632903,-150.0,0.00026849,4]
[391137880,1760388632912,-267.46074303,0.00026869,2]
[391137881,1760388632923,-150.0,0.00026941,4]
[391137882,1760388632932,-743.01,0.00026986,7]
[391137883,1760388632942,-743.01,0.00026986,7]
[391137884,1760388632953,-156.0,0.00027,7]
[391137885,1760388632963,-151.13882583,0.00027161,2]
[391137886,1760388632973,-151.13882582,0.00027178,2]
[391137887,1760388632983,-151.0,0.00027194,7]
[391137888,1760388632992,-151.13882582,0.00027195,2]
[391137889,1760388633003,-67455.88074072,0.00027197,2]
[391137890,1760388633012,-151.13882582,0.00027212,2]
[391137891,1760388633022,-151.13882582,0.00027229,2]
[391137892,1760388633033,-151.13882582,0.00027246,2]
[391137893,1760388633043,-743.01,0.0002726,7]
[391137894,1760388633054,-743.01,0.0002726,7]
[391137895,1760388633064,-2751.0,0.00027261,2]
[391137896,1760388633075,-151.13882582,0.00027263,2]
[391137897,1760388633085,-151.13882582,0.0002728,2]
[391137898,1760388633095,-211.40028568,0.00027287,2]
[391137899,1760388633105,-277.39190499,0.00027287,2]
[391137900,1760388633115,-661.96808798,0.00027297,2]
[391137901,1760388633126,-195.0204824,0.00027297,2]
[391137902,1760388633135,-507.76798787,0.00027297,2]
[391137903,1760388633145,-2001.94449394,0.00027297,2]
[391137904,1760388633155,-151.13882582,0.00027297,2]
[391137905,1760388633164,-1093.22,0.000273,7]
[391137906,1760388633174,-291.0,0.00027327,2]
[391137907,1760388633183,-186.0,0.00027367,120]
[391137908,1760388633193,-501.37384197,0.00027373,2]
[391137909,1760388633202,-186.0,0.00027377,120]
[391137910,1760388633212,-16021.7731391,0.00027377,3]
[391137911,1760388633222,-151.0,0.00027384,7]
[391137912,1760388633231,-16021.7731391,0.00027386,3]
[391137913,1760388633241,-48065.3194172,0.00027387,3]
[391137914,1760388633250,-151.0,0.00027387,7]
[391137915,1760388633260,-151.0,0.00027387,7]
[391137916,1760388633269,-205.690028,0.00027387,7]
[391137917,1760388633279,-151.0,0.00027387,7]
[391137918,1760388633288,-151.0,0.00027387,7]
[391137919,1760388633297,-151.0,0.00027387,7]
[391137920,1760388633307,-161.126229,0.00027387,7]
[391137921,1760388633316,-151.0,0.00027387,7]
[391137922,1760388633326,-151.0,0.00027387,7]
[391137923,1760388633335,-151.0,0.00027387,7]
[391137924,1760388633344,-151.0,0.00027387,7]
[391137925,1760388633354,-151.0,0.00027387,7]
[391137926,1760388633363,-171.403251,0.00027387,7]
[391137927,1760388633373,-186.0,0.00027387,120]
[391137928,1760388633382,-13747.03279177,0.00027387,3]
[391137935,1760388637824,-151.0,0.00027387,7]
[391137936,1760388637834,-175.462943,0.00027387,7]
[391137937,1760388637843,-151.0,0.00027387,7]
[391137938,1760388637854,-3681.0907542,0.00027387,3]
[391137939,1760388637865,-947.53446188,0.00027387,3]
[391137940,1760388637878,-5088.28579635,0.00027387,3]
[391137941,1760388637998,-972.8,0.00027387,3]
[391137942,1760388638015,-1260.0,0.00027387,3]
[391137943,1760388638032,-1118.10003,0.00027387,3]
[391137944,1760388638046,-488.21664,0.00027387,3]
[391137945,1760388638058,-7257.86763777,0.00027387,3]
[391137972,1760388639785,-5806.632404,0.00014602,2]
[391137974,1760388639796,-4088.552413,0.00027387,3]
[391137981,1760388639893,-3915.99999993,0.00027387,3]
[391137982,1760388639904,-11095.0,0.00027387,3]
[391137986,1760388639953,-50014.99961782,0.00027387,3]
[391137993,1760388640011,-184716.43636028,0.00027387,3]
[391137995,1760388640021,-51661.3586729,0.00027387,3]
[391138001,1760388640066,-246645.75674684,0.00027387,3]
[391138007,1760388640124,-16875.36386462,0.00027387,3]
[391138008,1760388640135,-781.75,0.00027387,3]
[391138015,1760388642876,-605.15,0.00026886,2]
[391138016,1760388642931,-3517.3256874,0.00026886,2]
[391138017,1760388642941,-2111.30557623,0.00027287,2]
[391138018,1760388642986,-2037.22180092,0.00027287,2]
[391138019,1760388642996,-169.654225,0.00027387,7]
[391138020,1760388643006,-3292.59127071,0.00027387,3]
[391138028,1760388645917,-5116.29372609,0.00027387,3]
[391138029,1760388645972,-19963.93291497,0.00027387,3]
[391138030,1760388645983,-2091.54442055,0.00027387,3]
[391138042,1760389203008,163.73,0.0001111,2]
[391138054,1760389684515,79426.26478327,0.00012339,2]
[391138055,1760389684544,9275.10521673,0.00012339,2]
[391138071,1760389831957,-163.73,0.00014814,2]
[391138073,1760389831972,-191.40882774,0.00014814,2]
[391138076,1760389831987,-2000.0,0.00014814,2]
[391138078,1760389832002,-213.9386452,0.00014814,2]
[391138079,1760389832016,-135.80568637,0.00015337,2]
[391138080,1760389832046,-58.59375104,0.00015337,2]
[391138081,1760389832063,-2000.0,0.00015339,2]
[391138082,1760389832078,-2000.0,0.00015339,2]
[391138083,1760389832095,-574.61514503,0.00015339,2]
[391138084,1760389832109,-213.9386452,0.00015437,2]
[391138085,1760389832125,-150.0,0.00016294,2]
[391138086,1760389832143,-317.92362492,0.00016295,2]
[391138087,1760389832158,-195.0,0.00016295,2]
[391138088,1760389832173,-2500.0,0.00016295,2]
[391138089,1760389832188,-182.35184329,0.00016295,2]
[391138090,1760389832202,-2000.0,0.00016295,2]
[391138091,1760389832216,-263.40091083,0.000171,2]
[391138092,1760389832230,-395.10136623,0.000171,2]
[391138093,1760389832244,-329.25113853,0.00017245,2]
[391138095,1760389832258,-395.10136624,0.00018309,2]
[391138098,1760389832272,-163.73,0.00018517,2]
[391138100,1760389832286,-151.0,0.00019178,2]
[391138103,1760389832300,-460.95159395,0.00019373,2]
[391138105,1760389832314,-300.0,0.00020332,2]
[391138108,1760389832328,-1200.0,0.00020332,2]
[391138110,1760389832343,-7371.364997,0.00020333,2]
[391138113,1760389832358,-526.80182166,0.00020436,2]
[391138115,1760389832371,-500.0,0.00020599,2]
[391138118,1760389832385,-500.0,0.00020599,2]
[391138120,1760389832399,-365.53556379,0.00020599,2]
[391138123,1760389832413,-96167.0,0.000206,2]
[391138126,1760389832428,-5513.0,0.00021,3]
[391138130,1760389832442,-592.65204936,0.000215,2]
[391138133,1760389832456,-5513.0,0.000215,5]
[391138136,1760389832470,-3710.22811866,0.00021887,2]
[391138138,1760389832484,-151.0,0.00021987,2]
[391138141,1760389832498,-151.0,0.00021987,2]
[391138145,1760389832512,-200.0,0.00021987,2]
[391138148,1760389832525,-151.0,0.00021987,2]
[391138153,1760389832539,-151.0,0.00021987,2]
[391138155,1760389832553,-151.0,0.00021987,2]
[391138157,1760389832567,-151.0,0.00021987,2]
[391138160,1760389832581,-151.0,0.00021987,2]
[391138163,1760389832595,-151.0,0.00021987,2]
[391138165,1760389832609,-151.0,0.00021987,2]
[391138168,1760389832623,-151.0,0.00021987,2]
[391138170,1760389832637,-151.0,0.00021987,2]
[391138172,1760389832650,-151.0,0.00021987,2]
[391138175,1760389832663,-163.73,0.00022221,2]
[391138177,1760389832676,-3710.22811862,0.00022488,2]
[391138180,1760389832689,-1000.0,0.000225,2]
[391138182,1760389832704,-658.50227707,0.00022563,2]
[391138184,1760389832717,-1880.52601793,0.00023089,2]
[391138187,1760389832735,-1829.70210069,0.00023089,2]
[391138190,1760389832751,-6379.02,0.0002317,2]
[391138192,1760389832764,-724.35250478,0.00023627,2]
[391138194,1760389832777,-3710.22811862,0.0002369,2]
[391138196,1760389832791,-783.46,0.0002415,30]
[391138198,1760389832804,-3710.22811862,0.00024291,2]
[391138200,1760389832818,-1934.149,0.00024427,7]
[391138201,1760389832832,-185.099,0.00024427,7]
[391138203,1760389832845,-219.39904159,0.00024658,2]
[391138206,1760389832859,-150.0,0.00024658,2]
[391138207,1760389832871,-150.0,0.00024658,2]
[391138208,1760389832884,-150.0,0.00024658,2]
[391138209,1760389832897,-150.0,0.00024658,2]
[391138210,1760389832910,-150.0,0.00024658,2]
[391138212,1760389832923,-150.0,0.00024658,2]
[391138213,1760389832934,-213.3,0.00024658,2]
[391138214,1760389832947,-150.0,0.00024658,2]
[391138215,1760389832961,-150.0,0.00024658,2]
[391138216,1760389832974,-790.20273249,0.00024691,2]
[391138217,1760389832987,-3710.22811862,0.00024893,2]
[391138218,1760389833000,-500.0,0.00024932,2]
[391138219,1760389833012,-180.0,0.00025114,120]
[391138220,1760389833026,-3710.22811862,0.00025494,2]
[391138221,1760389833038,-260.72778314,0.00025735,2]
[391138222,1760389833055,-200.0,0.00025735,2]
[391138223,1760389833068,-856.0529602,0.00025754,4]
[391138224,1760389833080,-150.0,0.00026027,4]
[391138225,1760389833093,-3710.22811862,0.00026095,2]
[391138226,1760389833116,-1000.0,0.000262,2]
[391138227,1760389833134,-500.0,0.000262,2]
[391138228,1760389833149,-150.0,0.000262,2]
[391138229,1760389833164,-150.0,0.000262,2]
[391138230,1760389833180,-976.0,0.000262,2]
[391138231,1760389833196,-500.0,0.00026255,2]
[391138232,1760389833210,-219.06945103,0.00026255,2]
[391138233,1760389833224,-976.0,0.00026255,2]
[391138234,1760389833237,-500.0,0.0002631,2]
[391138235,1760389833251,-976.0,0.0002631,2]
[391138236,1760389833264,-500.0,0.00026364,2]
[391138237,1760389833278,-976.0,0.00026364,2]
[391138238,1760389833291,-500.0,0.00026419,2]
[391138239,1760389833303,-976.0,0.00026419,2]
[391138240,1760389833316,-500.0,0.00026474,2]
[391138241,1760389833330,-911.81507382,0.00026474,2]
[391138242,1760389834164,-64.18492618,0.00026474,2]
[391138243,1760389834188,-500.0,0.00026529,2]
[391138244,1760389834207,-976.0,0.00026529,2]
[391138245,1760389834217,-500.0,0.00026584,2]
[391138246,1760389834227,-976.0,0.00026584,2]
[391138247,1760389834237,-168.0,0.00026607,2]
[391138248,1760389834247,-500.0,0.00026638,2]
[391138249,1760389834257,-976.0,0.00026638,2]
[391138250,1760389834267,-168.0,0.00026682,2]
[391138251,1760389834276,-357.7,0.00026686,2]
[391138252,1760389834287,-995.0,0.00026689,2]
[391138253,1760389834296,-500.0,0.00026693,2]
[391138254,1760389834306,-976.0,0.00026693,2]
[391138255,1760389834316,-3710.22811862,0.00026696,2]
[391138256,1760389834325,-500.0,0.00026748,2]
[391138257,1760389834335,-976.0,0.00026748,2]
[391138258,1760389834344,-500.0,0.00026803,2]
[391138259,1760389834353,-976.0,0.00026803,2]
[391138260,1760389834362,-921.9031879,0.00026818,6]
[391138261,1760389834371,-407.06199873,0.00026858,2]
[391138262,1760389834381,-976.0,0.00026858,2]
[391138263,1760389834390,-976.0,0.00026912,2]
[391138264,1760389834399,-812.0469347,0.00026914,2]
[391138265,1760389834408,-976.0,0.00026967,2]
[391138266,1760389834417,-500.0,0.00026973,2]
[391138267,1760389834427,-500.0,0.00026973,2]
[391138268,1760389834435,-500.0,0.00026973,2]
[391138269,1760389834445,-500.0,0.00026973,2]
[391138270,1760389834454,-500.0,0.00026973,2]
[391138271,1760389834463,-165.64596399,0.00026973,2]
[391138272,1760389834472,-472.07859674,0.00026973,2]
[391138273,1760389834482,-500.0,0.00026973,2]
[391138274,1760389834491,-500.0,0.00026973,2]
[391138275,1760389834501,-29883.0542515,0.0002699,3]
[391138276,1760389834513,-357.7,0.0002699,2]
[391138277,1760389834522,-357.7,0.0002699,2]
[391138278,1760389834532,-357.7,0.0002699,2]
[391138279,1760389834541,-357.7,0.0002699,2]
[391138280,1760389834551,-16365.37249799,0.00027,2]
[391138281,1760389834563,-105186.4320811,0.00027,2]
[391138282,1760389834574,-556.8968615,0.00027,2]
[391138283,1760389834585,-972.67038173,0.00027,2]
[391138284,1760389834596,-1122.51933016,0.00027,2]
[391138285,1760389834607,-1747.91157023,0.00027,2]
[391138286,1760389834618,-36910.75882693,0.00027,2]
[391138287,1760389834627,-156.0,0.00027,7]
[391138288,1760389834636,-500.0,0.00027,60]
[391138289,1760389834645,-976.0,0.00027022,2]
[391138290,1760389834655,-976.0,0.00027077,2]
[391138291,1760389834664,-976.0,0.00027132,2]
[391138292,1760389834673,-249.6527145,0.0002716,2]
[391138293,1760389834682,-976.0,0.00027186,2]
[391138294,1760389834692,-195.18720543,0.00027237,2]
[391138295,1760389834701,-198.47295673,0.00027237,2]
[391138296,1760389834710,-283.21550991,0.00027237,2]
[391138297,1760389834719,-260.44182062,0.00027237,2]
[391138298,1760389834728,-500.0,0.00027237,2]
[391138299,1760389834737,-305.46806554,0.00027237,2]
[391138300,1760389834747,-14941.5271257,0.00027238,3]
[391138301,1760389834756,-976.0,0.00027241,2]
[391138302,1760389834765,-150.0,0.00027272,2]
[391138303,1760389834774,-150.0,0.00027272,2]
[391138304,1760389834783,-150.0,0.00027272,2]
[391138305,1760389834792,-150.0,0.00027272,2]
[391138306,1760389834802,-976.0,0.00027296,2]
[391138307,1760389834811,-181.45282196,0.00027297,2]
[391138308,1760389834820,-166.07596626,0.00027297,2]
[391138309,1760389834829,-496.61602988,0.00027297,2]
[391138310,1760389834839,-3710.22811862,0.00027297,2]
[391138311,1760389834849,-520.18617874,0.00027297,2]
[391138312,1760389834859,-1334.62966262,0.00027297,2]
[391138313,1760389834869,-180.06703476,0.00027297,5]
[391138314,1760389834880,-195.0204824,0.00027297,2]
[391138315,1760389834889,-150.0,0.00027327,2]
[391138316,1760389834900,-413.39,0.00027342,2]
[391138317,1760389834910,-336.28,0.00027342,2]
[391138318,1760389834921,-351.88,0.00027342,2]
[391138319,1760389834931,-413.39,0.00027342,2]
[391138320,1760389834940,-353.36,0.00027342,2]
[391138321,1760389834950,-413.39,0.00027342,2]
[391138322,1760389834959,-413.39,0.00027342,2]
[391138323,1760389834968,-976.0,0.00027351,2]
[391138324,1760389834977,-150.5,0.00027367,120]
[391138325,1760389834987,-7299.11033606,0.00027368,3]
[391138327,1760389837972,-475.32661018,0.00017566,2]
[391138328,1760389837983,-4012.91813344,0.000269,2]
[391138329,1760389837994,-293.190862,0.00027,7]
[391138330,1760389838003,-7642.41678964,0.00027368,3]
[391138331,1760389838013,-14941.5271257,0.00027368,3]
[391138332,1760389838023,-500.0,0.00027373,2]
[391138333,1760389838032,-284.62047904,0.00027373,2]
[391138334,1760389838045,-277.90822476,0.00027373,2]
[391138335,1760389838057,-508.90027563,0.00027373,2]
[391138336,1760389838067,-151.0,0.00027373,7]
[391138337,1760389838076,-151.0,0.00027373,7]
[391138338,1760389838086,-151.0,0.00027373,7]
[391138339,1760389838097,-179.32571,0.00027373,2]
[391138340,1760389838106,-783.46,0.00027374,30]
[391138341,1760389838116,-2961.3955018,0.00027377,3]
[391138342,1760389838129,-551.09530478,0.00027377,3]
[391138343,1760389838154,-11429.03631912,0.00027377,3]
[391138344,1760389838163,-150.5,0.00027377,120]
[391138345,1760389838173,-29883.0542515,0.00027377,3]
[391138346,1760389838183,-158.05476268,0.00027377,2]
[391138347,1760389838192,-151.0,0.00027378,7]
[391138348,1760389838202,-151.0,0.00027378,7]
[391138349,1760389838212,-166.446904,0.00027378,7]
[391138350,1760389838221,-151.0,0.00027378,7]
[391138351,1760389838231,-154.136954,0.00027378,7]
[391138352,1760389838243,-151.0,0.00027378,7]
[391138353,1760389838253,-150.0,0.00027382,2]
[391138354,1760389838263,-370.68887098,0.00027386,3]
[391138355,1760389838273,-300.0,0.00027386,10]
[391138356,1760389838284,-300.0,0.00027386,10]
[391138357,1760389838294,-475.32661018,0.00027387,3]
[391138358,1760389838304,-45940.72614699,0.00027387,3]
[391138511,1760389839942,-13825.38235591,0.00027387,3]
[391138513,1760389839952,-36490.9347981,0.00027387,3]
[391138515,1760389839961,-1000.0,0.00027387,2]
[391138517,1760389839971,-1000.0,0.00027387,2]
[391138519,1760389839980,-1000.0,0.00027387,2]
[391138521,1760389839990,-675.40722301,0.00027387,2]
[391138523,1760389840000,-151.0,0.00027387,7]
[391138525,1760389840010,-151.0,0.00027387,7]
[391138527,1760389840019,-152.0,0.00027387,7]
[391138529,1760389840028,-119662.36984025,0.00027387,8]
[391138531,1760389840039,-150.5,0.00027387,120]
[391138533,1760389840052,-475.32661018,0.00027387,3]
[391138536,1760389840062,-164356.798383,0.00027387,3]
[391138538,1760389840073,-340582.058116,0.00027387,3]
[391138539,1760389840083,-300.0,0.00027396,10]
[391138542,1760389840092,-150.0,0.00027396,2]
[391138544,1760389840101,-300.0,0.00027396,10]
[391138546,1760389840111,-500.0,0.00027397,2]
[391138548,1760389840121,-500.0,0.00027397,2]
[391138550,1760389840131,-500.0,0.00027397,2]
[391138552,1760389840141,-151.0,0.00027397,7]
[391138554,1760389840150,-151.0,0.00027397,7]
[391138556,1760389840159,-151.0,0.00027397,7]
[391138558,1760389840168,-290.3254205,0.00027397,7]
[391138560,1760389840177,-448567.06182287,0.00027397,120]
[391138564,1760389840208,-1715.2346185,0.00027397,120]
[391138566,1760389840220,-424.8418315,0.00027397,120]
[391138569,1760389840231,-639.7628795,0.00027397,120]
[391138571,1760389840242,-16680.50001388,0.00027397,120]
[391138573,1760389840253,-1566.56410016,0.00027397,120]
[391138575,1760389840264,-1897.2955203,0.00027397,120]
[391138577,1760389840275,-1001.19884408,0.00027397,120]
[391138580,1760389840286,-272.24010028,0.00027397,120]
[391138582,1760389840297,-8399.88899999,0.00027397,120]